Workbook

Sheet UI_Index
C3: ="Vertragserfassung Tool "&Background!$A$34 -> Vertragserfassung Tool v1.7
D8: I. | E8: Lehrpersonal erfassen | M8: II. | N8: Verträge erfassen
D11: III. | E11: Verträge kontrollieren | M11: IV. | N11: Verträge generieren
Q13: Windows-Version

Sheet UI_beschäftigungsgrad
C3: TABELLE BESCHÄFTIGUNGSGRAD
M6: Lehrperson:
C7: GESAMT : | D7: =I9 -> 0.7142857126 | I7: EFFEKTIV
I8: in % | J8: in Std.
I9: =J9/Background!$D$2 -> 0.7142857126 | J9: =K14+K18+K22+K26+J13 -> 1361.428568 | M9: =Background!O2 -> 2016-08-01
C11: UNTERRICHT | D11: =Background!F2+Background!F4+Background!F13+Background!F15 &" Lektionen" -> 20 Lektionen
C12: 88% - (75% - 92%) | J12: =K14+J18+J22+J26+J13 -> 1198.05714
C13: Altersentlastung | I13: =J13/Background!D2 -> 0 | J13: =J34+T34+J57+J78 -> 0
C14: ± Flexibilisierung | I14: =K14/Background!D2 -> 0.6285714271 | J14: =-(J18+J22+J26) -> 0 | K14: =K35+U35+K58+U58 -> 1198.05714
C16: SCHÜLERINNEN / SCHÜLER
C17: 4% - (2% - 17%) | J17: =J38+T38 -> 54.45714273
C18: ± Flexibilisierung : | I18: =K18/Background!D2 -> 0.0285714285 | J18: =J39+T39 -> 0 | K18: =J17+J18 -> 54.45714273
C20: SCHULE
C21: 5% - (2% - 17%) | J21: =J42+T42+J86 -> 68.07142841
C22: ± Flexibilisierung : | I22: =K22/Background!D2 -> 0.03571428563 | J22: =J43+T43+J87 -> 0 | K22: =J21+J22 -> 68.07142841
C24: LEHRPERSON
C25: 3% - (2% - 9%) | J25: =J46+T46+J69 -> 40.84285705
C26: ± Flexibilisierung : | I26: =K26/Background!D2 -> 0.02142857138 | J26: =J47+T47+J70 -> 0 | K26: =J25+J26 -> 40.84285705
C28: BASISVERTRAG : | D28: =I30 -> 0.3571428563 | F28: NORMALISIERT | I28: EFFEKTIV | M28: ZUSATZVERTRÄGE : | N28: =S30 -> 0.3571428563 | P28: NORMALISIERT | S28: EFFEKTIV
I29: in % | J29: in Std. | S29: in % | T29: in Std.
I30: =J30/Background!D2 -> 0.3571428563 | J30: =K35+K39+K43+K47+J34 -> 680.7142841 | S30: =T30/Background!D2 -> 0.3571428563 | T30: =U35+U39+U43+U47+T34 -> 680.7142841
C32: UNTERRICHT | D32: =Background!F2 & " Lektionen" -> 10 Lektionen | M32: UNTERRICHT | N32: =Background!F4 & " Lektionen" -> 10 Lektionen
C33: =F33*100&"% - (75% - 92%)" -> 88% - (75% - 92%) | F33: =1-(F38+F42+F46) -> 0.88 | J33: =K35+J39+J43+J47+J34 -> 599.02857 | M33: =P33*100&"% - (75% - 92%)" -> 88% - (75% - 92%) | P33: =1-(P38+P42+P46) -> 0.88 | T33: =U35+T34+T39+T43+T47 -> 599.02857
C34: Altersentlastung | I34: =J34/Background!D2 -> 0 | J34: =IF(Background!C9<=0.3,, IF(Background!M2=0,, IF(Background!M2=1, IF(Background!P2="Mono", (Background!F2*Background!E2+Background!J2+Background!L2)/27*2, (Background!F2*Background!E2+Background!H2+Background!J2+Background!L2)/26*2), IF(Background!P2="Mono", (Background!F2*Background!E2+Background!J2+Background!L2)/26*3, (Background!F2*Background!E2+Background!H2+Background!J2+Background!L2)/25*3)))) -> 0 | M34: Altersentlastung | S34: =T34/Background!D2 -> 0 | T34: =IF(Background!C9<=0.3,, IF(Background!M2=0,, IF(Background!M2=1, IF(Background!P2="Mono", (Background!F4*Background!E2+Background!H4+Background!J4+Background!L4)/27*2, (Background!F4*Background!E2+Background!H4+Background!J4+Background!L4)/26*2), IF(Background!P2="Mono", (Background!F4*Background!E2+Background!H4+Background!J4+Background!L4)/26*3, (Background!F4*Background!E2+Background!H4+Background!J4+Background!L4)/25*3)))) -> 0
C35: ± Flexibilisierung | F35: =IF(J$30>0,J35/J$30,0) -> 0 | G35: =F33+F35 -> 0.88 | I35: =K35/Background!D2 -> 0.3142857135 | J35: =-(J39+J43+J47) -> 0 | K35: =Background!F2*Background!E2 -> 599.02857 | M35: ± Flexibilisierung | P35: =IF(T$30>0,T35/T$30,0) -> 0 | Q35: =P33+P34+P35 -> 0.88 | S35: =U35/Background!D2 -> 0.3142857135 | T35: =-(T39+T43+T47) -> 0 | U35: =Background!F4*Background!E2 -> 599.02857
C37: SCHÜLERINNEN / SCHÜLER | M37: SCHÜLERINNEN / SCHÜLER
C38: =F38*100&"% - (2% - 17%)" -> 4% - (2% - 17%) | F38: =IF(OR(Background!$F$11=0,Background!$F11=1),4%,0%) -> 0.04 | J38: =J33/F33*F38 -> 27.22857136 | M38: =P38*100&"% - (2% - 17%)" -> 4% - (2% - 17%) | P38: =IF(OR(Background!$F$11=0,Background!$F11=1),4%,0%) -> 0.04 | T38: =T33/P33*P38 -> 27.22857136
C39: ± Flexibilisierung : | D39: =IF(Background!G2="","",Background!G2) ->  | F39: =IF(J$30>0,J39/J$30,0) -> 0 | G39: =F38+F39 -> 0.04 | I39: =K39/Background!D2 -> 0.01428571425 | J39: =Background!H2 -> 0 | K39: =J38+J39 -> 27.22857136 | M39: ± Flexibilisierung : | N39: =IF(Background!G4="","",Background!G4) ->  | P39: =IF(T$30>0,T39/T$30,0) -> 0 | Q39: =P38+P39 -> 0.04 | S39: =U39/Background!D2 -> 0.01428571425 | T39: =Background!H4 -> 0 | U39: =T38+T39 -> 27.22857136
C41: SCHULE | M41: SCHULE
C42: =F42*100&"% - (2% - 17%)" -> 5% - (2% - 17%) | F42: =IF(OR(Background!$F$11=0,Background!$F11=2),5%,0%) -> 0.05 | J42: =J33/F33*F42 -> 34.0357142 | M42: =P42*100&"% - (2% - 17%)" -> 5% - (2% - 17%) | P42: =IF(OR(Background!$F$11=0,Background!$F11=2),5%,0%) -> 0.05 | T42: =T33/P33*P42 -> 34.0357142
C43: ± Flexibilisierung : | D43: =IF(Background!I2="","",Background!I2) ->  | F43: =IF(J$30>0,J43/J$30,0) -> 0 | G43: =F42+F43 -> 0.05 | I43: =K43/Background!D2 -> 0.01785714281 | J43: =Background!J2 -> 0 | K43: =J42+J43 -> 34.0357142 | M43: ± Flexibilisierung : | N43: =IF(Background!I4="","",Background!I4) ->  | P43: =IF(T$30>0,T43/T$30,0) -> 0 | Q43: =P42+P43 -> 0.05 | S43: =U43/Background!D2 -> 0.01785714281 | T43: =Background!J4 -> 0 | U43: =T42+T43 -> 34.0357142
C45: LEHRPERSON | M45: LEHRPERSON
C46: =F46*100 &"% - (2% - 9%)" -> 3% - (2% - 9%) | F46: 0.03 | J46: =J33/F33*F46 -> 20.42142852 | M46: =P46*100 &"% - (2% - 9%)" -> 3% - (2% - 9%) | P46: 0.03 | T46: =T33/P33*P46 -> 20.42142852
C47: ± Flexibilisierung : | D47: =IF(Background!K2="","",Background!K2) ->  | F47: =IF(J$30>0,J47/J$30,0) -> 0 | G47: =F46+F47 -> 0.03 | I47: =K47/Background!D2 -> 0.01071428569 | J47: =Background!L2 -> 0 | K47: =J46+J47 -> 20.42142852 | M47: ± Flexibilisierung : | N47: =IF(Background!K4="","",Background!K4) ->  | P47: =IF(T$30>0,T47/T$30,0) -> 0 | Q47: =P46+P47 -> 0.03 | S47: =U47/Background!D2 -> 0.01071428569 | T47: =Background!L4 -> 0 | U47: =T46+T47 -> 20.42142852
C49: SONDERVERTRÄGE
C51: KURZE STELLVERTRETUNG BIS 4 WOCHEN : | D51: =I53 -> 0 | F51: NORMALISIERT | I51: EFFEKTIV | M51: ÜBERZEIT UNTERRICHT : | N51: =S53 -> 0 | P51: NORMALISIERT | S51: EFFEKTIV
I52: in % | J52: in Std. | S52: in % | T52: in Std.
I53: =J53/Background!$D$2 -> 0 | J53: =K58+K62+K66+K70+J57 -> 0 | S53: =T53/Background!$D$2 -> 0 | T53: =U58+U62+U66+U70+T57 -> 0
C55: UNTERRICHT | D55: =Background!F13 & " Lektionen" -> 0 Lektionen | M55: UNTERRICHT | N55: =Background!F15 & " Lektionen" -> 0 Lektionen
C56: =F56*100&"%" -> 97% | F56: 0.97 | J56: =K58+J62+J66+J70+J57 -> 0 | M56: =P56*100&"%" -> 100% | P56: 1 | T56: =U58+T62+T66+T70+T57 -> 0
C57: Altersentlastung | I57: =J57/Background!D2 -> 0 | J57: =IF(Background!C9<=0.3,, IF(Background!M2=0,, IF(Background!M2=1, (Background!F13*Background!E2+Background!L13)/(((Background!D2*F56)/Background!E2)-2)*2, (Background!F13*Background!E2+Background!L13)/(((Background!D2*F56)/Background!E2)-3)*3))) -> 0
C58: ± Flexibilisierung | F58: =IF(J$53>0,J58/J$53,0) -> 0 | G58: =F56+F58 -> 0.97 | I58: =K58/Background!$D$2 -> 0 | J58: =-(J62+J66+J70) -> 0 | K58: =Background!F13*Background!E2 -> 0 | M58: ± Flexibilisierung | P58: =IF(T$53>0,T58/T$53,0) -> 0 | Q58: =P56+P58 -> 1 | S58: =U58/Background!$D$2 -> 0 | T58: =-(T62+T66+T70) -> 0 | U58: =Background!E2*Background!F15 -> 0
C60: SCHÜLERINNEN / SCHÜLER | M60: SCHÜLERINNEN / SCHÜLER
C64: SCHULE | M64: SCHULE
C68: LEHRPERSON | M68: LEHRPERSON
C69: =F69*100 &"%" -> 3% | F69: 0.03 | J69: =J56/F56*F69 -> 0
F70: =IF(J$53>0,J70/J$53,0) -> 0 | G70: =F69+F70 -> 0.03 | I70: =K70/Background!$D$2 -> 0 | J70: 0 | K70: =J69+J70 -> 0
C72: AUSSCHLIESSLICH ARBEITSFELD SCHULE : | D72: =I74 -> 0 | F72: NORMALISIERT | I72: EFFEKTIV
I73: in % | J73: in Std.
I74: =J74/Background!$D$2 -> 0 | J74: =K87+J78 -> 0
C76: UNTERRICHT
C78: Altersentlastung | G78: =IF(J$74>0,J78/J$74,0) -> 0 | I78: =J78/Background!D2 -> 0 | J78: =IF(Background!C9<=0.3,, IF(Background!M2=0,, IF(Background!M2=1,Background!J17/93.714*6.286, Background!J17/90.571*9.429))) -> 0
C81: SCHÜLERINNEN / SCHÜLER
C85: SCHULE
F86: =IF(J87=0,1,0) -> 1
C87: ± Flexibilisierung : | D87: =IF(Background!I17="","",Background!I17) ->  | F87: =IF(J$74>0,J87/J$74,0) -> 0 | G87: =F86+F87 -> 1 | I87: =K87/Background!$D$2 -> 0 | J87: =Background!$J17 -> 0 | K87: =J87 -> 0
C89: LEHRPERSON

Sheet Background
A1: category | B1: salary_long_name | C1: salary_short_name | D1: max_workhours | E1: class_hours | F1: workload_base | G1: flexi1_base_T | H1: flexi1_base_H | I1: flexi2_base_T | J1: flexi2_base_H | K1: flexi3_base_T | L1: flexi3_base_H | M1: age_reduc | N1: class_resp | O1: chosen_date | P1: teacher_type | Q1: teacher_name | U1: Lists: | V1: Anrede | W1: LPKategorie | X1: Verträge | Y1: Lehrpersonen
A2: Wahl | B2: Primarschule, Kindergarten, Legasthenie- und Dyskalkulie-Therapie | C2: KG / PS / Lega-Dysk | D2: 1906 | E2: 59.902857 | F2: 10 | H2: 0 | J2: 0 | L2: 0 | M2: 0 | N2: 0 | O2: 2016-08-01 | P2: LP | Q2: asdf asdf | V2: Frau | W2: Lehrperson | X2: Basisvertrag | Y2: asdf, badfs
A3: Lehrauftrag unbefristet | B3: Oberstufe, Kleinklasse, ISF / Logopädie / Rhythmik / Psychomotorik mit Lehrdiplom für Regelklasse | C3: OS / SHP | F3: workload_add | G3: flexi1_add_T | H3: flexi1_add_H | I3: flexi2_add_T | J3: flexi2_add_H | K3: flexi3_add_T | L3: flexi3_add_H | O3: =DAY(O2) -> 1 | V3: Mann | W3: Klassenlehrperson | X3: Zusatzvertrag | Y3: Doe, Jeanne
A4: Lehrauftrag befristet | B4: ISF / Logopädie / Rhythmik / Psychomotorik ohne Lehrdiplom für Regelklasse | C4: Förderungen ohne Lehrdiplom Regelklasse | F4: 10 | H4: 0 | J4: 0 | L4: 0 | O4: =MONTH(O2) -> 8 | W4: Reine Fachlehrperson | X4: Kurze Stellvertrungen bis 4 Wochen | Y4: fgbdsyfbxbycx, cbyxvvcxycvx
F5: start_base | G5: end_base | H5: start_sA | I5: end_sA | J5: start_sC | K5: end_sC | O5: =YEAR(O2) -> 2016 | X5: Überzeit Unterricht | Y5: Schmutz, Helmut
A6: calendar | F6: 2016-08-01 | G6: 2017-07-31 | H6: 9999-12-31 | I6: 1900-12-31 | J6: 9999-12-31 | K6: 1900-12-31 | X6: Projekt im Arbeitsfeld Schule | Y6: Seltzer, Louis
A7: DTReference | F7: start_add | G7: end_add | H7: start_sB | I7: end_sB | Y7: Test, Frau
C8: get FTE no age Reduc | F8: 2016-08-01 | G8: 2017-07-31 | H8: 9999-12-31 | I8: 1900-12-31 | Y8: vd<yx, v<cxy
A9: Januar | C9: 0.7142857126
A10: Februar | F10: under30
A11: März | F11: 0
A12: April | F12: workload_sA | G12: flexi1_sA_T | H12: flexi1_sA_H | I12: flexi2_sA_T | J12: flexi2_sA_H | K12: flexi3_sA_T | L12: flexi3_sA_H
A13: Mai | F13: 0 | H13: 0 | J13: 0 | L13: 0
A14: Juni | F14: workload_sB | G14: flexi1_sB_T | H14: flexi1_sB_H | I14: flexi2_sB_T | J14: flexi2_sB_H | K14: flexi3_sB_T | L14: flexi3_sB_H
A15: Juli | F15: 0 | H15: 0 | J15: 0 | L15: 0
A16: August | F16: workload_sC | G16: flexi1_sC_T | H16: flexi1_sC_H | I16: flexi2_sC_T | J16: flexi2_sC_H | K16: flexi3_sC_T | L16: flexi3_sC_H
A17: September | C17: =E2/D2 -> 0.03142857135 | F17: 0 | H17: 0 | J17: 0 | L17: 0
A18: Oktober
A19: November
A20: Dezember
A22: ChosenDay | F22: <SCHULE_NAME1> | G22: <SCHULE_NAME2> | H22: <SCHULE_STRASSE> | I22: <SCHULE_ORT> | J22: <SCHULE_TELNR> | K22: <SCHULE_EMAIL> | L22: <AG1_NAME> | M22: <AG1_FUNKTION> | N22: <AG2_NAME> | O22: <AG2_FUNKTION>
A23: 10 | F23: Gemeinde Beispiel | G23: Muster Schule | H23: Beispielsstr. 152 | I23: =I24&" "&I25 -> 9000 St.Gallen | L23: Frau Präsidentin | M23: Schulratspräsidentin | N23: Herr Verwalter | O23: Schulverwalter
A24: Fix Counters | I24: 9000
A25: 5 | I25: St.Gallen
A26: Dir Word-Template
A29: Schoolyear
A30: 2019 - 2020
F31: workload_add | G31: flexi1_add_T | H31: flexi1_add_H | I31: flexi2_add_T | J31: flexi2_add_H | K31: flexi3_add_T | L31: flexi3_add_H | M31: start_add | N31: end_add
A32: 1.7 | F32: 10 | M32: 2016-08-01 | N32: 2017-07-31
A33: Tool Version | B33: Next Version (check for update)
A34: ="v" & A32 -> v1.7 | B34: ="v"&A32+0.1 -> v1.8
A35: BLD

Sheet AFÜbersicht
A1: ÜBERSICHT ARBEITSFELDER
A2: Stichtag: 01.01.2015
A3: LEHRPERSONEN | D3: ARBEITSFELDER (in Stunden)
A4: Name | B4: Vorname | D4: Unterricht | E4: SuS | F4: Schule | G4: Lehrperson | H4: Total
H5: 340.35

Sheet DB_teacher
A1: Lehrperson ID | B1: Name | C1: Vorname | D1: Funktion | E1: Geburtsdatum | F1: Lehrperson Typ | G1: Adresse | H1: Jobsharing ID | I1: PLZ | J1: Ort | K1: männlich | L1: Altersentlastung | M1: % - Anstellung | N1: KG / PS / Lega-Dysk | O1: OS / SHP | P1: Förderungen ohne Lehrdiplom Regelklasse | Q1: Musiklehrer ohne Musikdiplom | R1: Kindergarten | S1: Primarschule | T1: Oberstufe | U1: Sonderpädagogik | V1: Deutsch für Kinder mit Migrationshintergrund | W1: % - KG / PS / Lega-Dysk | X1: % - OS / SHP | Y1: % - Förderungen ohne Lehrdiplom Regelklasse | Z1: % - Musiklehrer ohne Musikdiplom | AA1: % - Kindergarten | AB1: % - Primarschule | AC1: % - Oberstufe | AD1: % - Sonderpädagogik | AE1: % - Deutsch für Kinder mit Migrationshintergrund | AF1: BG < 30% | AG1: LEER_LASSEN_2

Sheet DB_contract
A1: Lehrperson ID | B1: Vertrag ID | C1: Vertragsart | D1: Vertragsbeginn | E1: Vertragsende | F1: Unterricht Lektionen | G1: Klassenlehrperson | H1: Flexi SuS Text | I1: Flexi SuS Std. | J1: Flexi Schule Text | K1: Flexi Schule Std. | L1: Flexi LP Text | M1: Flexi LP Std. | N1: Job Sharing | O1: nicht ständig | P1: Special_Form | Q1: KG / PS / Lega-Dysk | R1: OS / SHP | S1: Förderungen ohne Lehrdiplom Regelklasse | T1: Musiklehrer ohne Musikdiplom | U1: Kindergarten | V1: Primarschule | W1: Oberstufe | X1: Sonderpädagogik | Y1: Deutsch für Kinder mit Migrationshintergrund

Sheet print_all
A1: ANHANG BASISVERTRAG
H2: =TODAY() -> 2024-02-29
B3: =Background!$Q$2 -> asdf asdf
A4: Von: | B4: =Background!$F$6 -> 2016-08-01
A5: Bis: | B5: =IF(Background!$G$6="N/A","unbefristet",Background!$G$6) -> 2017-07-31
B7: BASISVERTRAG : | C7: =H9 -> 0.3571428563 | E7: NORMALISIERT | H7: EFFEKTIV
H8: in % | I8: in Std.
H9: =UI_beschäftigungsgrad!$I$30 -> 0.3571428563 | I9: =UI_beschäftigungsgrad!$J$30 -> 680.7142841
B11: UNTERRICHT | C11: =UI_beschäftigungsgrad!$D$32 -> 10 Lektionen
B12: =UI_beschäftigungsgrad!$C$33 -> 88% - (75% - 92%) | E12: =UI_beschäftigungsgrad!$F$33 -> 0.88 | I12: =UI_beschäftigungsgrad!$J$33 -> 599.02857
B13: Altersentlastung | H13: =UI_beschäftigungsgrad!$I$34 -> 0 | I13: =UI_beschäftigungsgrad!$J$34 -> 0
B14: ± Flexibilisierung | E14: =UI_beschäftigungsgrad!$F$35 -> 0 | F14: =E12+E14 -> 0.88 | H14: =UI_beschäftigungsgrad!$I$35 -> 0.3142857135 | I14: =UI_beschäftigungsgrad!$J$35 -> 0 | J14: =UI_beschäftigungsgrad!$K$35 -> 599.02857
B16: SCHÜLERINNEN / SCHÜLER
B17: =UI_beschäftigungsgrad!$C$38 -> 4% - (2% - 17%) | E17: =UI_beschäftigungsgrad!$F$38 -> 0.04 | I17: =$I$12/$E$12*$E$17 -> 27.22857136
B18: ± Flexibilisierung : | C18: =UI_beschäftigungsgrad!$D$39 ->  | E18: =UI_beschäftigungsgrad!$F$39 -> 0 | F18: =E17+E18 -> 0.04 | H18: =UI_beschäftigungsgrad!$I$39 -> 0.01428571425 | I18: =UI_beschäftigungsgrad!$J$39 -> 0 | J18: =UI_beschäftigungsgrad!$K$39 -> 27.22857136
B20: SCHULE
B21: =UI_beschäftigungsgrad!$C$42 -> 5% - (2% - 17%) | E21: =UI_beschäftigungsgrad!$F$42 -> 0.05 | I21: =$I$12/$E$12*$E$21 -> 34.0357142
B22: ± Flexibilisierung : | C22: =UI_beschäftigungsgrad!$D$43 ->  | E22: =UI_beschäftigungsgrad!$F$43 -> 0 | F22: =E21+E22 -> 0.05 | H22: =UI_beschäftigungsgrad!$I$43 -> 0.01785714281 | I22: =UI_beschäftigungsgrad!$J$43 -> 0 | J22: =UI_beschäftigungsgrad!$K$43 -> 34.0357142
B24: LEHRPERSON
B25: =UI_beschäftigungsgrad!$C$46 -> 3% - (2% - 9%) | E25: =UI_beschäftigungsgrad!$F$46 -> 0.03 | I25: =$I$12/$E$12*$E$25 -> 20.42142852
B26: ± Flexibilisierung : | C26: =UI_beschäftigungsgrad!$D$47 ->  | E26: =UI_beschäftigungsgrad!$F$47 -> 0 | F26: =E25+E26 -> 0.03 | H26: =UI_beschäftigungsgrad!$I$47 -> 0.01071428569 | I26: =UI_beschäftigungsgrad!$J$47 -> 0 | J26: =UI_beschäftigungsgrad!$K$47 -> 20.42142852
A32: ANHANG ZUSATZVERTRAG
H33: =TODAY() -> 2024-02-29
B34: =Background!$Q$2 -> asdf asdf
A35: Von: | B35: 2016-08-01
A36: Bis: | B36: 2017-07-31
B38: ZUSATZVERTRAG : | C38: =H40 -> 0.3571437089 | E38: NORMALISIERT | H38: EFFEKTIV
H39: in % | I39: in Std.
H40: =I40/Background!$D$2 -> 0.3571437089 | I40: =I44+J45+J49+J53+J57 -> 680.7159091
B42: UNTERRICHT | C42: 10 Lektionen
B43: =E43*100&"% - (75% - 92%)" -> 88% - (75% - 92%) | E43: =1-(E48+E52+E56) -> 0.88 | I43: =J45+I44+I49+I53+I57 -> 599.03
B44: Altersentlastung | H44: =I44/Background!$D$2 -> 0 | I44: 0
B45: ± Flexibilisierung | E45: =IF(I40>0,I45/I40,0) -> 0 | F45: =E43+E45 -> 0.88 | H45: =J45/Background!$D$2 -> 0.3142864638 | I45: =-(I49+I53+I57) -> 0 | J45: 599.03
B47: SCHÜLERINNEN / SCHÜLER
B48: =E48*100&"% - (2% - 17%)" -> 4% - (2% - 17%) | E48: =IF(OR(Background!$F$11=0,Background!$F$11=1),4%,0%) -> 0.04 | I48: =I43/E43*E48 -> 27.22863636
B49: ± Flexibilisierung : | E49: =IF(I40>0,I49/I40,0) -> 0 | F49: =E48+E49 -> 0.04 | H49: =J49/Background!$D$2 -> 0.01428574835 | I49: 0 | J49: =I48+I49 -> 27.22863636
B51: SCHULE
B52: =E52*100&"% - (2% - 17%)" -> 5% - (2% - 17%) | E52: =IF(OR(Background!$F$11=0,Background!$F$11=2),5%,0%) -> 0.05 | I52: =I43/E43*E52 -> 34.03579545
B53: ± Flexibilisierung : | E53: =IF(I40>0,I53/I40,0) -> 0 | F53: =E53+E52 -> 0.05 | H53: =J53/Background!$D$2 -> 0.01785718544 | I53: 0 | J53: =I52+I53 -> 34.03579545
B55: LEHRPERSON
B56: =E56*100 &"% - (2% - 9%)" -> 3% - (2% - 9%) | E56: 0.03 | I56: =I43/E43*E56 -> 20.42147727
B57: ± Flexibilisierung : | E57: =IF(I40>0,I57/I40,0) -> 0 | F57: =E56+E57 -> 0.03 | H57: =J57/Background!$D$2 -> 0.01071431127 | I57: 0 | J57: =I56+I57 -> 20.42147727
A63: ANHANG ARBEITSFELD SCHULE
H64: =TODAY() -> 2024-02-29
B65: =Background!$Q$2 -> asdf asdf
A66: Von: | B66: 2015-08-01
A67: Bis: | B67: 2016-07-31
B69: AUSSCHLIESSLICH ARBEITSFELD SCHULE : | C69: =H71 -> 0 | E69: NORMALISIERT | H69: EFFEKTIV
H70: in % | I70: in Std.
H71: =I71/Background!$D$2 -> 0 | I71: =J84+I75 -> 0
B73: UNTERRICHT
B75: Altersentlastung | H75: =I75/Background!$D$2 -> 0 | I75: 0
B78: SCHÜLERINNEN / SCHÜLER
B82: SCHULE
E83: =IF(I84=0,1,0) -> 1
B84: =UI_beschäftigungsgrad!$C$87 -> ± Flexibilisierung : | C84: =IF(Background!$I$17="","",Background!$I$17) ->  | E84: =IF(I71>0,I84/I71,0) -> 0 | F84: =E83+E84 -> 1 | H84: =J84/Background!$D$2 -> 0 | I84: =Background!$J$17 -> 0 | J84: =I84 -> 0
B86: LEHRPERSON
A94: ANHANG STELLVERTRETUNG BIS 4 WOCHEN
H95: =TODAY() -> 2024-02-29
B96: =Background!$Q$2 -> asdf asdf
A97: Von: | B97: 2015-08-01
A98: Bis: | B98: 2016-07-31
B100: KURZE STELLVERTRETUNG BIS 4 WOCHEN : | C100: =H102 -> 0.107667972 | E100: NORMALISIERT | H100: EFFEKTIV
H101: in % | I101: in Std.
H102: =I102/Background!$D$2 -> 0.107667972 | I102: =I106+J107+J119 -> 205.2151546
B104: UNTERRICHT | C104: 3 Lektionen
B105: =UI_beschäftigungsgrad!$C$56 -> 97% | E105: 0.97 | I105: =I106+J107+I119 -> 199.0587
B106: =UI_beschäftigungsgrad!$C$57 -> Altersentlastung | H106: =I106/Background!$D$2 -> 0.01015146905 | I106: 19.3487
B107: =UI_beschäftigungsgrad!$C$58 -> ± Flexibilisierung | E107: =IF(I102>0,I107/I102,0) -> 0 | F107: =E105+E107 -> 0.97 | H107: =J107/Background!$D$2 -> 0.0942864638 | I107: =-I119 -> 0 | J107: 179.71
B109: SCHÜLERINNEN / SCHÜLER
B113: SCHULE
B117: LEHRPERSON
B118: =UI_beschäftigungsgrad!$C$69 -> 3% | E118: 0.03 | I118: =I105/E105*E118 -> 6.156454639
E119: =IF(I102>0,I119/I102,0) -> 0 | F119: =E118+E119 -> 0.03 | H119: =K163/Background!$D$2 -> 0 | I119: 0 | J119: =I118+I119 -> 6.156454639
J121: Dieser Vertrag muss im Wochenlohn entschädigt werden.
A125: ANHANG STELLVERTRETUNG BIS 4 WOCHEN
H126: =TODAY() -> 2024-02-29
B127: =Background!$Q$2 -> asdf asdf
A128: Von: | B128: 2015-08-01
A129: Bis: | B129: 2016-07-31
B131: KURZE STELLVERTRETUNG BIS 4 WOCHEN : | C131: =H133 -> 0.1435555111 | E131: NORMALISIERT | H131: EFFEKTIV
H132: in % | I132: in Std.
H133: =I133/Background!$D$2 -> 0.1435555111 | I133: =I137+J138+J150 -> 273.6168041
B135: UNTERRICHT | C135: 4 Lektionen
B136: =UI_beschäftigungsgrad!$C$56 -> 97% | E136: 0.97 | I136: =I137+J138+I150 -> 265.4083
B137: =UI_beschäftigungsgrad!$C$57 -> Altersentlastung | H137: =I137/Background!$D$2 -> 0.01353530955 | I137: 25.7983
B138: =UI_beschäftigungsgrad!$C$58 -> ± Flexibilisierung | E138: =IF(I133>0,I138/I133,0) -> 0 | F138: =E136+E138 -> 0.97 | H138: =J138/Background!$D$2 -> 0.1257135362 | I138: =-I150 -> 0 | J138: 239.61
B140: SCHÜLERINNEN / SCHÜLER
B144: SCHULE
B148: LEHRPERSON
B149: =UI_beschäftigungsgrad!$C$69 -> 3% | E149: 0.03 | I149: =I136/E136*E149 -> 8.208504124
E150: =IF(I133>0,I150/I133,0) -> 0 | F150: =E149+E150 -> 0.03 | H150: =K194/Background!$D$2 -> 0 | I150: 0 | J150: =I149+I150 -> 8.208504124
J152: Dieser Vertrag muss im Wochenlohn entschädigt werden.
A156: ANHANG ÜBERZEIT
H157: =TODAY() -> 2024-02-29
B158: =Background!$Q$2 -> asdf asdf
A159: Von: | B159: 2015-08-01
A160: Bis: | B160: 2016-07-31
B162: ÜBERZEIT UNTERRICHT : | C162: =H164 -> 0.0314270724 | E162: NORMALISIERT | H162: EFFEKTIV
H163: in % | I163: in Std.
H164: =I164/Background!$D$2 -> 0.0314270724 | I164: =J169 -> 59.9
B166: UNTERRICHT | C166: 1 Lektionen
B167: =UI_beschäftigungsgrad!$M$56 -> 100% | E167: 1 | I167: =J169 -> 59.9
B169: =UI_beschäftigungsgrad!$M$58 -> ± Flexibilisierung | E169: =IF(I164>0,I169/I164,0) -> 0 | F169: =E167+E169 -> 1 | H169: =J169/Background!$D$2 -> 0.0314270724 | I169: 0 | J169: 59.9
B171: SCHÜLERINNEN / SCHÜLER
B175: SCHULE
B179: LEHRPERSON
A187: ANHANG ÜBERZEIT
H188: =TODAY() -> 2024-02-29
B189: =Background!$Q$2 -> asdf asdf
A190: Von: | B190: 2015-08-01
A191: Bis: | B191: unbefristet
B193: ÜBERZEIT UNTERRICHT : | C193: =H195 -> 0.0628593914 | E193: NORMALISIERT | H193: EFFEKTIV
H194: in % | I194: in Std.
H195: =I195/Background!$D$2 -> 0.0628593914 | I195: =J200 -> 119.81
B197: UNTERRICHT | C197: 2 Lektionen
B198: =UI_beschäftigungsgrad!$M$56 -> 100% | E198: 1 | I198: =J200 -> 119.81
B200: =UI_beschäftigungsgrad!$M$58 -> ± Flexibilisierung | E200: =IF(I195>0,I200/I195,0) -> 0 | F200: =E198+E200 -> 1 | H200: =J200/Background!$D$2 -> 0.0628593914 | I200: 0 | J200: 119.81
B202: SCHÜLERINNEN / SCHÜLER
B206: SCHULE
B210: LEHRPERSON
A218: ANHANG ARBEITSFELD SCHULE
H219: =TODAY() -> 2024-02-29
B220: =Background!$Q$2 -> asdf asdf
A221: Von: | B221: 2015-08-01
A222: Bis: | B222: unbefristet
B224: AUSSCHLIESSLICH ARBEITSFELD SCHULE : | C224: =H226 -> 0.02141720881 | E224: NORMALISIERT | H224: EFFEKTIV
H225: in % | I225: in Std.
H226: =I226/Background!$D$2 -> 0.02141720881 | I226: =J239+I230 -> 40.8212
B228: UNTERRICHT
B230: Altersentlastung | H230: =I230/Background!$D$2 -> 0.01092402938 | I230: 20.8212
B233: SCHÜLERINNEN / SCHÜLER
B237: SCHULE
E238: =IF(I239=0,1,0) -> 0
B239: =UI_beschäftigungsgrad!$C$87 -> ± Flexibilisierung : | E239: =IF(I226>0,I239/I226,0) -> 0.489941501 | F239: =E238+E239 -> 0.489941501 | H239: =J239/Background!$D$2 -> 0.01049317943 | I239: 20 | J239: =I239 -> 20
B241: LEHRPERSON
A249: ANHANG ARBEITSFELD SCHULE
H250: =TODAY() -> 2024-02-29
B251: =Background!$Q$2 -> asdf asdf
A252: Von: | B252: 2015-08-01
A253: Bis: | B253: unbefristet
B255: AUSSCHLIESSLICH ARBEITSFELD SCHULE : | C255: =H257 -> 0.01131248688 | E255: NORMALISIERT | H255: EFFEKTIV
H256: in % | I256: in Std.
H257: =I257/Background!$D$2 -> 0.01131248688 | I257: =J270+I261 -> 21.5616
B259: UNTERRICHT
B261: Altersentlastung | H261: =I261/Background!$D$2 -> 0.0008193074502 | I261: 1.5616
B264: SCHÜLERINNEN / SCHÜLER
B268: SCHULE
E269: =IF(I270=0,1,0) -> 0
B270: =UI_beschäftigungsgrad!$C$87 -> ± Flexibilisierung : | E270: =IF(I257>0,I270/I257,0) -> 0.9275749481 | F270: =E269+E270 -> 0.9275749481 | H270: =J270/Background!$D$2 -> 0.01049317943 | I270: 20 | J270: =I270 -> 20
B272: LEHRPERSON

Sheet print_base
A1: ANHANG BASISVERTRAG
H2: =TODAY() -> 2024-02-29
B3: =Background!$Q$2 -> asdf asdf
A4: Von: | B4: =Background!$F$6 -> 2016-08-01
A5: Bis: | B5: =IF(Background!$G$6="N/A","unbefristet",Background!$G$6) -> 2017-07-31
B7: BASISVERTRAG : | C7: =H9 -> 0.3571428563 | E7: NORMALISIERT | H7: EFFEKTIV
H8: in % | I8: in Std.
H9: =UI_beschäftigungsgrad!$I$30 -> 0.3571428563 | I9: =UI_beschäftigungsgrad!$J$30 -> 680.7142841
B11: UNTERRICHT | C11: =UI_beschäftigungsgrad!$D$32 -> 10 Lektionen
B12: =UI_beschäftigungsgrad!$C$33 -> 88% - (75% - 92%) | E12: =UI_beschäftigungsgrad!$F$33 -> 0.88 | I12: =UI_beschäftigungsgrad!$J$33 -> 599.02857
B13: Altersentlastung | H13: =UI_beschäftigungsgrad!$I$34 -> 0 | I13: =UI_beschäftigungsgrad!$J$34 -> 0
B14: ± Flexibilisierung | E14: =UI_beschäftigungsgrad!$F$35 -> 0 | F14: =E12+E14 -> 0.88 | H14: =UI_beschäftigungsgrad!$I$35 -> 0.3142857135 | I14: =UI_beschäftigungsgrad!$J$35 -> 0 | J14: =UI_beschäftigungsgrad!$K$35 -> 599.02857
B16: SCHÜLERINNEN / SCHÜLER
B17: =UI_beschäftigungsgrad!$C$38 -> 4% - (2% - 17%) | E17: =UI_beschäftigungsgrad!$F$38 -> 0.04 | I17: =$I$12/$E$12*$E$17 -> 27.22857136
B18: ± Flexibilisierung : | C18: =UI_beschäftigungsgrad!$D$39 ->  | E18: =UI_beschäftigungsgrad!$F$39 -> 0 | F18: =E17+E18 -> 0.04 | H18: =UI_beschäftigungsgrad!$I$39 -> 0.01428571425 | I18: =UI_beschäftigungsgrad!$J$39 -> 0 | J18: =UI_beschäftigungsgrad!$K$39 -> 27.22857136
B20: SCHULE
B21: =UI_beschäftigungsgrad!$C$42 -> 5% - (2% - 17%) | E21: =UI_beschäftigungsgrad!$F$42 -> 0.05 | I21: =$I$12/$E$12*$E$21 -> 34.0357142
B22: ± Flexibilisierung : | C22: =UI_beschäftigungsgrad!$D$43 ->  | E22: =UI_beschäftigungsgrad!$F$43 -> 0 | F22: =E21+E22 -> 0.05 | H22: =UI_beschäftigungsgrad!$I$43 -> 0.01785714281 | I22: =UI_beschäftigungsgrad!$J$43 -> 0 | J22: =UI_beschäftigungsgrad!$K$43 -> 34.0357142
B24: LEHRPERSON
B25: =UI_beschäftigungsgrad!$C$46 -> 3% - (2% - 9%) | E25: =UI_beschäftigungsgrad!$F$46 -> 0.03 | I25: =$I$12/$E$12*$E$25 -> 20.42142852
B26: ± Flexibilisierung : | C26: =UI_beschäftigungsgrad!$D$47 ->  | E26: =UI_beschäftigungsgrad!$F$47 -> 0 | F26: =E25+E26 -> 0.03 | H26: =UI_beschäftigungsgrad!$I$47 -> 0.01071428569 | I26: =UI_beschäftigungsgrad!$J$47 -> 0 | J26: =UI_beschäftigungsgrad!$K$47 -> 20.42142852

Sheet print_add
A1: ANHANG ZUSATZVERTRAG
H2: =TODAY() -> 2024-02-29
B3: =Background!$Q$2 -> asdf asdf
A4: Von: | B4: 2016-08-01
A5: Bis: | B5: 2017-07-31
B7: ZUSATZVERTRAG : | C7: =H9 -> 0.3571437089 | E7: NORMALISIERT | H7: EFFEKTIV
H8: in % | I8: in Std.
H9: =I9/Background!$D$2 -> 0.3571437089 | I9: =I13+J14+J18+J22+J26 -> 680.7159091
B11: UNTERRICHT | C11: 10 Lektionen
B12: =E12*100&"% - (75% - 92%)" -> 88% - (75% - 92%) | E12: =1-(E17+E21+E25) -> 0.88 | I12: =J14+I13+I18+I22+I26 -> 599.03
B13: Altersentlastung | H13: =I13/Background!$D$2 -> 0 | I13: 0
B14: ± Flexibilisierung | E14: =IF(I9>0,I14/I9,0) -> 0 | F14: =E12+E14 -> 0.88 | H14: =J14/Background!$D$2 -> 0.3142864638 | I14: =-(I18+I22+I26) -> 0 | J14: 599.03
B16: SCHÜLERINNEN / SCHÜLER
B17: =E17*100&"% - (2% - 17%)" -> 4% - (2% - 17%) | E17: =IF(OR(Background!$F$11=0,Background!$F$11=1),4%,0%) -> 0.04 | I17: =I12/E12*E17 -> 27.22863636
B18: ± Flexibilisierung : | E18: =IF(I9>0,I18/I9,0) -> 0 | F18: =E17+E18 -> 0.04 | H18: =J18/Background!$D$2 -> 0.01428574835 | I18: 0 | J18: =I17+I18 -> 27.22863636
B20: SCHULE
B21: =E21*100&"% - (2% - 17%)" -> 5% - (2% - 17%) | E21: =IF(OR(Background!$F$11=0,Background!$F$11=2),5%,0%) -> 0.05 | I21: =I12/E12*E21 -> 34.03579545
B22: ± Flexibilisierung : | E22: =IF(I9>0,I22/I9,0) -> 0 | F22: =E22+E21 -> 0.05 | H22: =J22/Background!$D$2 -> 0.01785718544 | I22: 0 | J22: =I21+I22 -> 34.03579545
B24: LEHRPERSON
B25: =E25*100 &"% - (2% - 9%)" -> 3% - (2% - 9%) | E25: 0.03 | I25: =I12/E12*E25 -> 20.42147727
B26: ± Flexibilisierung : | E26: =IF(I9>0,I26/I9,0) -> 0 | F26: =E25+E26 -> 0.03 | H26: =J26/Background!$D$2 -> 0.01071431127 | I26: 0 | J26: =I25+I26 -> 20.42147727

Sheet print_sonderA
A1: ANHANG STELLVERTRETUNG BIS 4 WOCHEN
H2: =TODAY() -> 2024-02-29
B3: =Background!$Q$2 -> asdf asdf
A4: Von: | B4: 2011-08-01
A5: Bis: | B5: 2012-07-31
B7: KURZE STELLVERTRETUNG BIS 4 WOCHEN : | C7: =H9 -> 0.06480349628 | E7: NORMALISIERT | H7: EFFEKTIV
H8: in % | I8: in Std.
H9: =I9/Background!$D$2 -> 0.06480349628 | I9: =I13+J14+J26 -> 123.5154639
B11: UNTERRICHT | C11: 2 Lektionen
B12: =UI_beschäftigungsgrad!$C$56 -> 97% | E12: 0.97 | I12: =I13+J14+I26 -> 119.81
B13: =UI_beschäftigungsgrad!$C$57 -> Altersentlastung | H13: =I13/Background!$D$2 -> 0 | I13: 0
B14: =UI_beschäftigungsgrad!$C$58 -> ± Flexibilisierung | E14: =IF(I9>0,I14/I9,0) -> 0 | F14: =E12+E14 -> 0.97 | H14: =J14/Background!$D$2 -> 0.0628593914 | I14: =-I26 -> 0 | J14: 119.81
B16: SCHÜLERINNEN / SCHÜLER
B20: SCHULE
B24: LEHRPERSON
B25: =UI_beschäftigungsgrad!$C$69 -> 3% | E25: 0.03 | I25: =I12/E12*E25 -> 3.705463918
E26: =IF(I9>0,I26/I9,0) -> 0 | F26: =E25+E26 -> 0.03 | H26: =J26/Background!$D$2 -> 0.001944104889 | I26: 0 | J26: =I25+I26 -> 3.705463918
J28: Dieser Vertrag muss im Wochenlohn entschädigt werden.

Sheet print_sonderB
A1: ANHANG ÜBERZEIT
H2: =TODAY() -> 2024-02-29
B3: =Background!$Q$2 -> asdf asdf
A4: Von: | B4: 2015-08-01
A5: Bis: | B5: unbefristet
B7: ÜBERZEIT UNTERRICHT : | C7: =H9 -> 0.0628593914 | E7: NORMALISIERT | H7: EFFEKTIV
H8: in % | I8: in Std.
H9: =I9/Background!$D$2 -> 0.0628593914 | I9: =J14 -> 119.81
B11: UNTERRICHT | C11: 2 Lektionen
B12: =UI_beschäftigungsgrad!$M$56 -> 100% | E12: 1 | I12: =J14 -> 119.81
B14: =UI_beschäftigungsgrad!$M$58 -> ± Flexibilisierung | E14: =IF(I9>0,I14/I9,0) -> 0 | F14: =E12+E14 -> 1 | H14: =J14/Background!$D$2 -> 0.0628593914 | I14: 0 | J14: 119.81
B16: SCHÜLERINNEN / SCHÜLER
B20: SCHULE
B24: LEHRPERSON

Sheet print_sonderC
A1: ANHANG ARBEITSFELD SCHULE
H2: =TODAY() -> 2024-02-29
B3: =Background!$Q$2 -> asdf asdf
A4: Von: | B4: 2015-08-01
A5: Bis: | B5: 2016-07-31
B7: AUSSCHLIESSLICH ARBEITSFELD SCHULE : | C7: =H9 -> 0 | E7: NORMALISIERT | H7: EFFEKTIV
H8: in % | I8: in Std.
H9: =I9/Background!$D$2 -> 0 | I9: =J22+I13 -> 0
B11: UNTERRICHT
B13: Altersentlastung | H13: =I13/Background!$D$2 -> 0 | I13: 0
B16: SCHÜLERINNEN / SCHÜLER
B20: SCHULE
E21: =IF(I22=0,1,0) -> 1
B22: =UI_beschäftigungsgrad!$C$87 -> ± Flexibilisierung : | C22: =IF(Background!$I$17="","",Background!$I$17) ->  | E22: =IF(I9>0,I22/I9,0) -> 0 | F22: =E21+E22 -> 1 | H22: =J22/Background!$D$2 -> 0 | I22: =Background!$J$17 -> 0 | J22: =I22 -> 0
B24: LEHRPERSON

Sheet Tabelle1
B2: Damit das Tool funktionniert müssen Makros aktiviert werden.
B3: Bitte aktivieren Sie im Tab "Datei" die Inhalte für diese Arbeitsmappe.
